bitfinex-derivatives/quotes_ETHF0:USTF0_20250828
["timestamp","ask_amount","ask_price","bid_price","bid_amount"]
[1756385770262,0.2966,4615.3,4614.5,3.2078]
[1756385770461,0.2966,4615.1,4614.6,19.969]
[1756385770671,0.51238583,4615.0,4614.6,19.969]
[1756385770868,0.51238583,4614.9,4614.6,19.969]
[1756385771173,0.4876,4615.5,4614.6,19.969]
[1756385771364,0.70334632,4615.4,4614.5,3.2078]
[1756385771558,3.2078,4615.6,4614.5,3.2078]
[1756385771559,0.99994632,4615.3,4614.6,19.968]
[1756385771764,0.51234632,4615.2,4614.6,19.968]
[1756385771969,0.51234632,4615.1,4614.6,19.968]
[1756385772169,0.2966,4615.3,4614.6,19.968]
[1756385772170,0.51234632,4615.0,4614.6,19.968]
[1756385772371,0.51234632,4614.9,4614.6,19.968]
[1756385772563,0.4876,4615.3,4614.5,3.2078]
[1756385772868,0.2966,4615.0,4614.5,3.2078]
[1756385773069,0.2966,4615.0,4613.8,40.8]
[1756385773070,0.191,4614.4,4614.3,19.967]
[1756385773469,0.70334655,4614.4,4614.0,3.2078]
[1756385773665,0.191,4614.2,4614.1,19.966]
[1756385773865,0.99994655,4614.2,4614.1,19.966]
[1756385774262,0.70334655,4614.2,4614.1,19.966]
[1756385774969,0.99994655,4614.2,4614.1,19.966]
[1756385776975,0.99994655,4614.2,4614.0,3.2078]
[1756385777174,0.99994655,4614.1,4614.0,23.1718]
[1756385778668,0.99994655,4614.1,4614.0,23.1708]
[1756385779471,0.99994655,4614.1,4614.0,19.963]
[1756385779672,0.70334655,4614.1,4613.5,3.2078]
[1756385779880,0.4876,4613.6,4613.5,3.2078]
[1756385780270,0.4876,4613.6,4613.3,10.357]
[1756385780271,0.99994655,4613.6,4613.3,10.357]
[1756385780467,0.4876,4613.1,4613.0,3.2078]
[1756385780970,0.191,4613.1,4612.9,19.962]
[1756385781172,0.99994655,4613.0,4612.5,3.2078]
[1756385781371,0.4876,4612.7,4612.5,3.2078]
[1756385781572,0.99994655,4612.6,4612.5,3.2078]
[1756385781772,0.99994655,4612.6,4612.5,23.1698]
[1756385782373,0.80894655,4612.6,4612.5,23.1698]
[1756385782778,0.99994655,4612.6,4612.5,3.2078]
[1756385783077,0.99994655,4612.6,4612.1,16.647]
[1756385783078,0.2966,4612.5,4612.1,16.647]
[1756385783270,0.4876,4612.1,4612.0,3.2078]
[1756385783472,0.99994655,4612.1,4612.0,3.2078]
[1756385784274,0.51234655,4612.1,4612.0,3.2078]
[1756385784474,0.51492409,4612.1,4612.0,7.2078]
[1756385784776,3.2078,4612.9,4612.0,7.2078]
[1756385784977,0.51491837,4612.8,4612.0,3.2078]
[1756385785178,0.51491837,4612.7,4612.0,3.2078]
[1756385785478,0.51491837,4612.6,4612.0,3.2078]
[1756385785678,0.51491837,4612.5,4612.0,3.2078]
[1756385785877,0.51491837,4612.4,4612.0,3.2078]
[1756385786080,0.51491837,4612.3,4612.0,3.2078]
[1756385786281,0.51491837,4612.2,4612.0,3.2078]
[1756385786473,0.4876,4612.8,4612.1,19.961]
[1756385786675,0.51491835,4612.7,4612.1,19.961]
[1756385786869,0.51491835,4612.6,4612.1,19.961]
[1756385787075,0.51491835,4612.5,4612.1,19.961]
[1756385787277,0.51491835,4612.4,4612.1,19.961]
[1756385787582,0.51491835,4612.3,4612.1,19.961]
[1756385787880,0.4876,4613.2,4612.1,19.961]
[1756385788078,0.51490419,4613.1,4612.1,19.961]
[1756385788279,0.51490419,4613.0,4612.7,3.2078]
[1756385788478,0.51490419,4612.9,4612.7,23.1698]
[1756385788780,0.51490419,4612.8,4612.7,23.1698]
[1756385788980,1.00250419,4612.8,4612.2,3.2078]
[1756385789179,0.4876,4612.6,4612.5,19.961]
[1756385789482,1.00250419,4612.6,4612.5,19.961]
[1756385789686,0.51490419,4612.6,4612.5,19.961]
[1756385789883,0.51490419,4612.6,4612.5,23.961]
[1756385790180,4.76915962,4613.9,4612.5,23.961]
[1756385790181,0.4876,4613.3,4612.5,23.961]
[1756385790373,0.81144637,4613.2,4612.9,3.2078]
[1756385790578,0.51484637,4613.1,4613.0,19.961]
[1756385793184,0.51484637,4613.1,4612.9,3.2078]
[1756385793380,0.2966,4614.2,4613.0,20.35017]
[1756385793686,0.51479521,4614.1,4613.5,3.2078]
[1756385793882,0.51479521,4614.0,4613.6,19.959]
[1756385794188,0.51479521,4613.9,4613.6,19.959]
[1756385794383,0.51479521,4613.8,4613.6,19.959]
[1756385794583,3.2078,4614.4,4613.6,19.959]
[1756385794788,0.51473916,4614.3,4613.7,40.8]
[1756385794986,0.51473916,4614.2,4614.0,3.2078]
[1756385795184,3.5044,4615.0,4614.0,3.2078]
[1756385795185,0.51473916,4614.1,4614.0,3.2078]
[1756385795388,0.2966,4614.8,4614.0,23.1658]
[1756385795587,0.51468322,4614.7,4614.0,23.1658]
[1756385795785,0.51468322,4614.6,4614.0,23.1658]
[1756385796085,0.51468322,4614.5,4614.0,23.1658]
[1756385796390,0.4944735,4615.1,4614.2,0.39007]
[1756385796582,0.51465652,4615.0,4614.5,3.2078]
[1756385796785,0.51465652,4614.9,4614.6,19.957]
[1756385796982,0.51465652,4614.8,4614.6,19.957]
[1756385797282,0.51465652,4614.7,4614.6,19.957]
[1756385797482,0.51465652,4614.8,4614.6,19.957]
[1756385797685,0.51465652,4614.7,4614.6,19.957]
[1756385797884,0.70645652,4614.7,4614.5,3.2078]
[1756385798086,0.1918,4614.3,4613.7,40.8]
[1756385798290,0.81355652,4614.2,4614.1,3.2078]
[1756385798490,0.81355652,4614.2,4614.1,23.1628]
[1756385798884,0.51465652,4614.2,4614.1,23.1628]
[1756385799588,0.51465652,4614.4,4614.1,23.1628]
[1756385799784,0.51465652,4614.3,4614.1,23.1628]
[1756385799986,0.51465652,4614.2,4614.1,23.1628]
[1756385800291,0.51465652,4614.4,4614.1,23.1628]
[1756385800491,0.51465652,4614.3,4614.1,23.1628]
[1756385800691,0.51465652,4614.2,4614.1,23.1628]
[1756385801091,0.51465652,4614.7,4614.1,23.1628]
[1756385801294,0.2989,4614.5,4614.1,23.1628]
[1756385801491,0.51465652,4614.4,4614.1,23.1628]
[1756385802794,0.51465652,4614.3,4614.2,19.952]
[1756385804189,0.4907,4614.6,4614.2,19.952]
[1756385804388,0.0037735,4615.1,4614.2,19.952]
[1756385804389,0.2989,4614.4,4614.2,19.952]
[1756385804596,0.81355652,4614.3,4614.2,19.952]
[1756385804891,0.81355652,4614.3,4614.2,19.95]
[1756385806394,0.4907,4614.2,4614.1,3.2078]
[1756385806696,1.00535652,4614.2,4614.1,23.1568]
[1756385806996,0.81355652,4614.2,4614.1,23.1568]
[1756385807300,1.00535652,4614.2,4614.1,3.2078]
[1756385807496,1.00535652,4614.2,4614.1,23.1568]
[1756385808196,0.51465652,4614.2,4614.1,23.1568]
[1756385808394,0.81355652,4614.4,4614.1,23.1568]
[1756385808596,0.51465652,4614.3,4614.2,19.948]
[1756385808897,0.2989,4614.2,4614.1,3.2078]
[1756385809102,0.4907,4613.2,4613.1,3.2078]
[1756385809297,0.70645652,4613.2,4613.1,9.63]
[1756385809598,1.00535652,4613.2,4613.1,9.63]
[1756385809797,1.00535652,4613.2,4612.6,3.2078]
[1756385809989,1.00535652,4613.2,4612.1,3.2078]
[1756385809990,0.2989,4612.6,4612.1,3.2078]
[1756385810195,0.4907,4611.7,4611.6,6.6408]
[1756385810390,1.00535652,4611.7,4611.6,6.6408]
[1756385810597,1.00535652,4611.7,4611.6,3.433]
[1756385810899,1.00535652,4611.7,4611.1,3.2078]
[1756385810900,0.1918,4611.2,4611.1,3.2078]
[1756385811102,0.4907,4611.2,4611.1,22.3188]
[1756385811297,1.00535652,4611.2,4611.1,22.3188]
[1756385811497,0.51465652,4611.2,4611.1,22.3188]
[1756385811801,0.4907,4611.2,4611.1,22.3188]
[1756385812002,1.00535652,4611.2,4611.1,22.3188]
[1756385812201,0.81355652,4611.2,4611.1,22.3188]
[1756385812408,0.51465652,4611.2,4611.1,22.3188]
[1756385812705,0.70645652,4611.5,4611.1,22.3188]
[1756385812914,0.81355652,4611.4,4611.1,22.3188]
[1756385813100,0.51465652,4611.3,4611.1,22.3188]
[1756385813403,0.51465652,4611.3,4611.2,19.949]
[1756385817105,0.51465652,4611.8,4611.2,19.949]
[1756385817413,0.2989,4611.4,4611.2,19.949]
[1756385817715,0.51465652,4611.3,4611.2,19.949]
[1756385819410,0.51465652,4611.7,4611.2,19.949]
[1756385819909,0.81355652,4611.7,4611.2,19.949]
[1756385820109,0.70645652,4611.6,4611.2,19.949]
[1756385820316,0.81355652,4611.5,4611.2,19.949]
[1756385820519,0.81355652,4611.4,4611.2,19.949]
[1756385820711,0.51465652,4611.3,4611.2,19.949]
[1756385821011,0.70645652,4611.7,4611.2,19.949]
[1756385821217,0.2989,4611.5,4611.2,19.949]
[1756385821514,0.51465652,4611.4,4611.2,19.949]
[1756385822617,0.51465652,4611.3,4611.1,3.2078]
[1756385822812,0.51465652,4611.3,4611.2,19.95]
[1756385823313,0.51465652,4611.6,4611.2,19.95]
[1756385823610,0.70645652,4611.5,4611.1,3.2078]
[1756385823810,0.21684,4612.1,4610.3,34.4308]
[1756385823811,0.51465652,4611.4,4610.3,34.4308]
[1756385824014,3.2078,4611.2,4610.4,19.95]
[1756385824215,0.51465652,4611.1,4610.8,3.2078]
[1756385824512,3.2078,4611.8,4610.9,19.95]
[1756385824513,0.51465652,4611.0,4610.9,19.95]
[1756385824713,0.51465652,4611.5,4610.9,19.95]
[1756385824916,0.51465652,4611.4,4610.9,19.95]
[1756385825116,0.51465652,4611.3,4610.9,19.95]
[1756385825318,0.51465652,4611.2,4610.9,19.95]
[1756385825518,0.51465652,4611.1,4610.9,19.95]
[1756385825720,0.51465652,4611.0,4610.9,19.95]
[1756385826113,0.51465652,4611.4,4610.9,19.95]
[1756385826313,0.51465652,4611.3,4610.9,19.95]
[1756385826614,0.2798,4611.8,4610.9,19.95]
[1756385826615,0.51465652,4611.2,4610.9,19.95]
[1756385826809,0.51465652,4611.1,4610.9,19.95]
[1756385827015,0.51465652,4611.0,4610.9,19.95]
[1756385827213,0.4839,4611.5,4610.9,19.95]
[1756385827416,0.71875652,4611.4,4610.8,3.2078]
[1756385827619,3.2078,4612.3,4610.8,3.2078]
[1756385827620,0.2798,4611.2,4610.9,19.95]
[1756385827922,0.79445652,4611.1,4611.0,19.95]
[1756385828119,0.51465652,4611.1,4611.0,19.95]
[1756385828321,0.79445652,4611.3,4611.0,19.95]
[1756385828517,0.51465652,4611.2,4611.0,19.95]
[1756385828716,0.51465652,4611.2,4610.8,3.2078]
[1756385828921,3.2078,4612.3,4611.1,19.95]
[1756385829117,0.73214649,4612.2,4611.1,19.95]
[1756385829324,0.2798,4612.0,4611.1,19.95]
[1756385829521,0.2798,4611.8,4611.1,19.95]
[1756385829822,0.71939649,4611.7,4611.1,19.95]
[1756385830017,0.2798,4611.5,4611.1,19.95]
[1756385830322,0.51529649,4611.4,4611.1,19.95]
[1756385830518,0.51529649,4611.3,4611.1,19.95]
[1756385830723,0.4839,4611.9,4611.2,3.2078]
[1756385830918,0.2798,4611.7,4611.2,3.2078]
[1756385831220,0.2798,4611.4,4611.2,3.2078]
[1756385831415,3.2078,4612.3,4611.2,3.2078]
[1756385831416,0.51528712,4611.3,4611.2,3.2078]
[1756385831618,0.4839,4611.3,4611.2,3.2078]
[1756385831822,0.51528712,4611.3,4611.2,19.949]
[1756385832024,7.90856,4611.3,4610.3,31.223]
[1756385832211,0.4839,4610.4,4610.3,31.223]
[1756385832414,0.51528712,4610.4,4610.3,51.172]
[1756385833022,0.51528712,4611.0,4610.3,51.172]
[1756385833325,0.51528712,4610.9,4610.5,3.2078]
[1756385833521,0.51528712,4610.8,4610.6,19.949]
[1756385833822,0.51528712,4610.7,4610.6,19.949]
[1756385834024,0.51528712,4611.0,4610.6,19.949]
[1756385834419,0.51528712,4610.9,4610.6,19.949]
[1756385834613,0.51528712,4610.8,4610.6,19.949]
[1756385834820,0.51528712,4610.7,4610.6,19.949]
[1756385835219,0.71938712,4611.6,4610.6,20.16588999]
[1756385835525,0.71938712,4611.5,4611.0,3.2078]
[1756385835822,0.51528712,4611.4,4611.1,19.948]
[1756385836018,0.51528712,4611.3,4611.1,19.948]
[1756385836218,0.51528712,4611.2,4611.1,19.948]
[1756385836423,0.51528712,4611.6,4611.1,19.948]
[1756385836823,0.2041,4611.5,4611.0,3.2078]
[1756385837030,0.79508712,4611.4,4611.1,19.948]
[1756385837221,0.51528712,4611.3,4611.1,19.948]
[1756385837624,0.2798,4611.3,4611.1,19.948]
[1756385838728,0.52077705,4611.2,4611.1,19.948]
[1756385839133,0.80057705,4611.2,4611.1,19.948]
[1756385839433,0.52077705,4611.2,4611.1,19.948]
[1756385839730,5.00467705,4611.2,4611.1,19.948]
[1756385839924,5.00467705,4611.2,4610.3,34.4308]
[1756385839925,4.94174705,4611.2,4610.3,34.4308]
[1756385840121,0.52077705,4611.1,4610.4,19.947]
[1756385840322,0.2798,4610.9,4610.4,19.947]
[1756385840527,0.2798,4610.7,4610.4,19.947]
[1756385840726,0.72487705,4610.6,4610.4,19.947]
[1756385840927,3.2078,4611.4,4610.4,19.947]
[1756385840928,0.80057705,4610.5,4610.4,19.947]
[1756385841127,1.00467705,4610.5,4610.3,34.4308]
[1756385841325,0.80057705,4610.4,4610.3,34.4308]
[1756385841529,0.52077705,4610.4,4610.3,54.3778]
[1756385841926,0.2798,4610.4,4610.3,34.4308]
[1756385842125,0.80057705,4610.4,4610.3,54.3768]
[1756385842331,1.00467705,4610.4,4610.3,23.1538]
[1756385842536,1.00467705,4610.4,4610.3,3.2078]
[1756385842738,1.00467705,4610.4,4610.3,23.1538]
[1756385845638,1.00467705,4610.4,4610.3,3.2078]
[1756385846136,1.00467705,4610.4,4610.3,11.7148]
[1756385846539,1.00467705,4610.4,4610.3,3.2078]
[1756385850241,0.2798,4610.3,4610.0,15.453]
[1756385850540,3.2078,4610.9,4610.0,15.453]
[1756385850541,0.4839,4610.1,4610.0,15.453]
[1756385850737,1.00467705,4610.1,4610.0,15.453]
[1756385851440,0.2041,4609.3,4608.7,34.4498]
[1756385851647,0.2041,4608.9,4608.8,19.945]
[1756385851841,0.4839,4608.9,4608.8,19.945]
[1756385852241,1.00467705,4608.9,4608.8,19.945]
[1756385852738,1.00467705,4608.9,4608.7,34.4498]
[1756385852938,0.80057705,4608.8,4608.7,54.3948]
[1756385853241,1.00467705,4608.8,4608.7,23.1528]
[1756385854248,1.00467705,4608.8,4608.7,3.2078]
[1756385855650,0.52077705,4608.8,4608.7,3.2078]
[1756385856045,0.52077705,4609.0,4608.7,3.2078]
[1756385856250,0.80697705,4608.9,4608.7,3.2078]
[1756385856438,0.52077705,4608.8,4608.7,3.2078]
[1756385857241,3.2078,4609.7,4609.0,0.39051]
[1756385857448,0.52100988,4609.6,4609.2,3.2078]
[1756385857649,3.2078,4610.2,4609.3,19.947]
[1756385857650,0.52100988,4609.5,4609.3,19.947]
[1756385857946,0.72210988,4609.4,4608.7,3.2078]
[1756385858148,0.52100988,4609.3,4608.7,3.2078]
[1756385858348,0.4873,4608.8,4608.7,3.2078]
[1756385858752,1.00830988,4608.8,4608.7,3.2078]
[1756385859346,1.00830988,4608.8,4608.4,16.415]
[1756385859548,1.00830988,4608.7,4608.4,16.415]
[1756385859747,0.52100988,4608.6,4608.4,16.415]
[1756385860356,0.52100988,4608.5,4608.4,16.415]
[1756385860756,0.2862,4609.1,4608.4,16.415]
[1756385861056,0.52107856,4609.0,4608.4,16.415]
[1756385861257,0.52107856,4608.9,4608.4,16.415]
[1756385861454,0.52107856,4608.8,4608.4,16.415]
[1756385861658,0.52107856,4608.7,4608.4,16.415]
[1756385861858,0.2862,4609.5,4608.4,16.415]
[1756385862060,0.52105395,4609.4,4608.5,0.39056]
[1756385862262,0.52105395,4609.3,4608.5,0.39056]
[1756385862459,0.52105395,4609.2,4608.8,3.2078]
[1756385862755,0.52105395,4609.1,4608.8,3.2078]
[1756385863055,0.4873,4609.9,4608.8,3.2078]
[1756385863360,0.72212049,4609.8,4608.8,3.2078]
[1756385863561,0.52102049,4609.7,4608.9,40.8]
[1756385863762,0.80722049,4609.6,4609.0,19.678]
[1756385863956,0.52102049,4609.5,4609.0,19.678]
[1756385864158,0.52102049,4609.4,4609.0,19.678]
[1756385864357,0.52102049,4609.3,4608.9,40.8]
[1756385864562,3.2078,4610.3,4608.9,40.8]
[1756385864563,0.99769797,4609.2,4609.1,19.947]
[1756385864760,0.71149797,4609.2,4608.8,3.2078]
[1756385865059,0.51041197,4609.1,4608.8,10.744]
[1756385865263,0.2011,4608.9,4608.7,19.946]
[1756385865459,0.99771197,4608.8,4608.7,19.946]
[1756385865654,0.51041197,4608.8,4608.7,19.946]
[1756385865960,0.2862,4609.0,4608.7,19.946]
[1756385866161,0.79661197,4608.9,4608.7,19.946]
[1756385866365,0.51041197,4608.8,4608.7,19.946]
[1756385867156,0.51041197,4609.1,4608.7,19.946]
[1756385867357,0.51041197,4609.0,4608.7,19.946]
[1756385868160,0.99771197,4609.0,4608.7,19.946]
[1756385868363,0.51041197,4608.9,4608.7,19.946]
[1756385869163,0.51041197,4608.8,4608.7,19.946]
[1756385869364,0.2862,4609.4,4608.7,19.946]
[1756385869365,0.51041197,4609.3,4608.7,19.946]
[1756385869667,0.2862,4609.2,4608.7,19.946]
[1756385869866,0.2011,4608.8,4608.7,19.945]
[1756385870061,0.99771197,4608.8,4608.7,19.945]
[1756385870266,0.51041197,4608.8,4608.7,19.945]
[1756385870570,0.2862,4609.6,4608.7,19.945]
[1756385870871,0.2862,4609.4,4608.7,19.945]
[1756385871063,0.71151197,4609.3,4608.7,19.945]
[1756385871260,0.4873,4609.1,4608.7,19.945]
[1756385871464,0.4873,4608.8,4608.7,19.945]
[1756385871673,0.2862,4608.8,4608.7,19.945]
[1756385871872,0.51041197,4608.8,4608.7,19.945]
[1756385872572,0.51041197,4608.9,4608.7,19.945]
[1756385872872,0.51041197,4608.8,4608.7,19.945]
[1756385873171,0.51041197,4609.2,4608.7,19.945]
[1756385873467,3.2078,4609.8,4608.7,19.945]
[1756385873468,0.79661197,4609.1,4608.8,3.2078]
[1756385873672,0.51041197,4609.0,4608.8,3.2078]
[1756385874573,0.2862,4608.9,4608.8,3.2078]
[1756385874768,0.79661197,4608.9,4608.8,23.1518]
[1756385875471,0.99771197,4608.9,4608.8,3.2078]
[1756385875768,0.79661197,4608.9,4608.8,23.1518]
[1756385875963,0.99771197,4608.9,4608.8,23.1518]
[1756385876669,0.99771197,4608.9,4608.8,23.1508]
[1756385877674,0.99771197,4608.9,4608.8,3.2078]
[1756385880276,0.2862,4608.8,4608.3,3.2078]
[1756385880473,3.2078,4609.3,4608.3,3.2078]
[1756385880474,0.4873,4608.4,4608.3,3.2078]
[1756385880674,0.99771197,4608.4,4608.3,3.2078]
[1756385882078,0.99771197,4608.4,4607.3,1.55190605]
[1756385882079,0.2011,4607.9,4607.8,23.1498]
[1756385882271,0.99771197,4607.9,4607.8,23.1498]
[1756385884476,0.4873,4607.7,4607.6,19.942]
[1756385884671,0.99771197,4607.7,4607.6,19.942]
[1756385884865,0.99771197,4607.7,4607.3,3.2078]
[1756385884866,0.51041197,4607.7,4607.5,19.942]
[1756385885069,0.99771197,4607.6,4607.5,19.942]
[1756385885878,0.51041197,4607.6,4607.5,19.942]
[1756385886272,3.2078,4608.3,4607.5,19.942]
[1756385886273,0.51041197,4607.8,4607.5,19.942]
[1756385886472,0.51041197,4607.7,4607.5,19.942]
[1756385886773,0.51041197,4607.6,4607.3,3.2078]
[1756385886977,0.51041197,4607.5,4607.4,19.942]
[1756385887375,0.51041197,4608.2,4607.4,23.942]
[1756385887583,0.51041197,4608.2,4607.4,20.33265]
[1756385887780,0.51041197,4608.2,4607.5,0.21702]
[1756385888282,0.51041197,4608.1,4607.4,19.942]
[1756385888478,0.51041197,4608.0,4607.5,0.21702]
[1756385888782,0.51041197,4607.9,4607.4,19.942]
[1756385889081,0.2031,4608.2,4607.5,19.941]
[1756385889282,0.71356246,4608.1,4607.5,19.941]
[1756385889483,0.51046246,4608.0,4607.5,19.941]
[1756385889686,0.51046246,4607.9,4607.5,19.941]
[1756385889976,0.4997,4608.3,4607.5,19.941]
[1756385890182,0.71357359,4608.2,4607.5,19.941]
[1756385890379,0.71357359,4608.1,4607.6,19.941]
[1756385890581,0.80707359,4608.0,4607.6,19.941]
[1756385890785,0.51047359,4607.9,4607.6,19.941]
[1756385890980,0.2966,4608.0,4607.6,19.941]
[1756385891281,0.51046749,4607.9,4607.6,19.941]
[1756385891483,0.2966,4608.0,4607.6,19.941]
[1756385891782,0.51046246,4607.9,4607.6,19.941]
[1756385892080,0.4997,4607.9,4607.3,3.2078]
[1756385892290,0.80707072,4607.8,4607.6,19.941]
[1756385892581,0.21701,4608.7,4607.6,19.941]
[1756385892783,0.2966,4608.5,4607.6,19.941]
[1756385892983,0.2966,4608.3,4607.6,19.941]
[1756385893177,0.71356339,4608.2,4607.6,19.941]
[1756385893383,0.51046339,4608.1,4607.6,19.941]
[1756385893587,0.51046339,4608.0,4607.6,19.941]
[1756385893779,0.51046339,4607.9,4607.6,19.941]
[1756385893980,0.51046034,4607.8,4607.6,19.941]
[1756385894280,3.2078,4608.8,4607.6,19.941]
[1756385894482,0.71356034,4608.7,4607.3,3.2078]
[1756385894682,0.51046034,4608.6,4607.4,20.15701]
[1756385894985,0.2966,4608.4,4607.4,20.15701]
[1756385895182,0.71356034,4608.3,4607.5,19.939]
[1756385895382,1.01016034,4608.2,4607.3,3.2078]
[1756385895679,0.71356034,4608.1,4607.3,3.42481]
[1756385895882,3.2078,4608.8,4607.4,19.939]
[1756385896180,3.2078,4608.8,4607.3,3.2078]
[1756385896181,0.2966,4608.6,4607.3,3.2078]
[1756385896389,0.4997,4607.6,4607.3,3.2078]
[1756385896590,0.4997,4607.5,4607.4,19.939]
[1756385896777,0.2966,4607.5,4607.4,19.939]
[1756385897081,0.2966,4608.7,4607.4,19.939]
[1756385897388,0.2966,4607.5,4607.4,19.939]
[1756385897984,3.2078,4608.8,4607.4,19.939]
[1756385898285,0.2966,4608.5,4607.4,19.939]
[1756385898477,0.51003944,4608.4,4607.4,19.939]
[1756385898685,0.2966,4608.2,4607.4,19.939]
[1756385898991,0.2966,4608.0,4607.4,19.939]
[1756385899291,0.2031,4607.8,4607.4,19.939]
[1756385899590,0.80663944,4607.7,4607.4,19.939]
[1756385899788,0.51003944,4607.6,4607.4,19.939]
[1756385899989,0.51003944,4607.5,4607.4,19.939]
[1756385900787,0.4997,4608.0,4607.4,19.939]
[1756385900987,1.00973701,4607.9,4607.5,19.938]
[1756385901188,0.51003701,4607.8,4607.5,19.938]
[1756385901392,0.51003701,4607.7,4607.5,19.938]
[1756385901692,0.51003701,4607.6,4607.5,19.938]
[1756385903187,0.80663701,4607.6,4607.5,19.937]
[1756385903382,0.80663701,4607.6,4607.3,3.2078]
[1756385903594,0.4997,4607.5,4607.4,19.937]
[1756385904093,1.00975624,4607.5,4607.4,19.937]
[1756385904291,0.71315624,4607.5,4607.4,19.936]
[1756385904888,1.00975624,4607.5,4607.3,3.2078]
[1756385905195,1.00975624,4607.4,4607.3,3.2078]
[1756385905594,1.00975624,4607.4,4606.8,3.2078]
[1756385905891,5.16035962,4608.7,4606.8,3.2078]
[1756385905892,0.4997,4606.9,4606.8,3.2078]
[1756385906096,0.4997,4606.9,4606.3,3.2078]
[1756385906097,0.2031,4606.9,4606.3,3.2078]
[1756385906292,0.2031,4605.8,4605.7,3.2078]
[1756385906487,0.2966,4606.0,4605.7,3.2078]
[1756385906693,0.8077435,4605.9,4605.7,3.2078]
[1756385906894,0.4997,4605.9,4605.7,3.2078]
[1756385907097,0.51677311,4605.8,4605.7,3.2078]
[1756385907596,1.01647311,4605.8,4605.7,3.2078]
[1756385909196,1.01647311,4605.8,4605.2,19.937]
[1756385909393,0.2031,4605.4,4605.3,19.936]
[1756385909597,0.4997,4605.4,4605.3,19.936]
[1756385909797,1.01647311,4605.4,4605.3,19.936]
[1756385910097,0.2031,4604.7,4604.6,3.2078]
[1756385910390,0.51681522,4604.7,4604.6,3.2078]
[1756385911897,0.51681522,4604.7,4604.6,23.1458]
[1756385912200,0.2966,4605.8,4604.6,27.36297]
[1756385912392,0.71990314,4605.7,4604.6,23.36297]
[1756385912593,3.2078,4606.0,4604.6,23.1458]
[1756385912594,0.51680314,4605.6,4604.6,23.1458]
[1756385912795,3.2078,4606.0,4604.6,23.1458]
[1756385912796,0.2966,4605.3,4604.6,23.1458]
[1756385913097,0.71990314,4605.2,4604.6,23.1458]
[1756385913293,0.81340314,4605.1,4604.6,23.1458]
[1756385913490,0.51680314,4605.0,4604.6,23.1458]
[1756385913691,0.2966,4605.9,4604.6,23.1458]
[1756385913889,0.51678491,4605.8,4604.6,23.1458]
[1756385914097,0.2966,4605.6,4604.6,23.1458]
[1756385914397,0.51678491,4605.5,4604.6,23.1458]
[1756385914592,0.51678491,4605.4,4604.6,23.1458]
[1756385914790,0.51678491,4605.3,4604.6,23.1458]
[1756385914992,3.2078,4606.0,4604.6,23.1458]
[1756385914993,0.51678491,4605.2,4605.1,3.2078]
[1756385915297,0.51678491,4605.2,4605.1,23.1468]
[1756385915799,0.51678491,4605.2,4605.1,19.939]
[1756385916096,1.01468491,4605.2,4604.6,3.2078]
[1756385916295,0.51678491,4605.1,4604.7,19.939]
[1756385916592,2.094,4606.7,4604.2,19.939]
[1756385916593,0.197,4604.7,4604.2,19.939]
[1756385916797,3.2078,4605.5,4604.2,19.939]
[1756385916798,0.51678491,4604.6,4604.2,19.939]
[1756385916996,0.71378491,4604.5,4604.2,19.939]
[1756385917194,0.51678491,4604.4,4604.2,19.939]
[1756385917496,0.4979,4605.1,4604.2,19.939]
[1756385917699,0.5168511,4605.0,4604.2,19.939]
[1756385917890,0.5168511,4604.9,4604.2,19.939]
[1756385918090,0.5168511,4604.8,4604.2,19.939]
[1756385918290,0.5168511,4604.7,4604.2,19.939]
[1756385918493,0.5168511,4604.6,4604.2,19.939]
[1756385918687,0.5168511,4604.5,4604.2,19.939]
[1756385918899,0.3009,4604.9,4604.2,19.939]
[1756385919102,0.51685261,4604.8,4604.2,19.939]
[1756385919400,0.51685261,4604.7,4604.2,19.939]
[1756385919601,0.51685261,4604.6,4604.2,19.939]
[1756385919804,0.51685261,4604.5,4604.2,19.939]
[1756385919993,0.4979,4605.0,4604.2,19.939]
[1756385920199,0.51685245,4604.9,4604.2,19.939]
[1756385920395,0.51685245,4604.8,4604.2,19.939]
[1756385920594,0.51685245,4604.7,4604.2,19.939]
[1756385920897,0.51685245,4604.6,4604.2,19.939]
[1756385921101,0.3009,4605.8,4604.2,19.939]
[1756385921295,0.51682875,4605.7,4604.2,19.939]
[1756385921494,0.3009,4605.4,4604.2,19.939]
[1756385921689,0.3009,4605.2,4604.2,19.939]
[1756385921903,0.3009,4605.0,4604.2,19.939]
[1756385922100,0.71382875,4604.9,4604.2,20.32992]
[1756385922302,0.51682875,4604.8,4604.2,20.32992]
[1756385922504,0.51682875,4604.7,4604.2,20.32992]
[1756385922703,0.51682875,4604.6,4604.4,3.2078]
[1756385923004,0.3009,4605.0,4604.4,3.2078]
[1756385923198,3.2078,4605.4,4604.4,3.2078]
[1756385923199,0.51681661,4604.9,4604.4,3.2078]
[1756385923400,0.51681661,4604.8,4604.4,3.2078]
[1756385923608,0.51681661,4604.7,4604.4,3.2078]
[1756385923900,3.2078,4605.4,4604.4,3.2078]
[1756385924204,0.51680312,4605.3,4604.4,3.2078]
[1756385924405,1.01470312,4605.2,4604.4,3.2078]
[1756385924605,0.4979,4605.0,4604.4,3.2078]
[1756385924806,0.3009,4604.8,4604.5,19.94]
[1756385925304,0.3009,4604.6,4604.4,3.2078]
[1756385925498,0.3009,4604.6,4604.5,19.94]
[1756385925705,0.4979,4604.6,4604.5,19.94]